bitfinex-derivatives/quotes_BTCF0:USTF0_20251011
["timestamp","ask_amount","ask_price","bid_price","bid_amount"]
[1760153165312,0.1107157,112080.0,112070.0,0.37425]
[1760153165511,0.52281048,112080.0,112070.0,0.3708]
[1760153165711,0.43470478,112080.0,112070.0,0.3708]
[1760153165910,0.43470478,112080.0,112070.0,0.4948236]
[1760153166115,0.5051343,112080.0,112070.0,0.4948236]
[1760153166408,0.59424,112080.0,112070.0,0.01]
[1760153166612,0.60481165,112080.0,112070.0,0.01]
[1760153166816,0.59806165,112080.0,112070.0,0.3708]
[1760153167118,0.59806165,112080.0,112070.0,0.01]
[1760153167310,0.59806165,112080.0,112070.0,0.3718]
[1760153167519,0.60481165,112080.0,112070.0,0.001]
[1760153167817,0.59806165,112080.0,112070.0,0.3618]
[1760153168012,0.50895595,112080.0,112070.0,0.4743636]
[1760153168212,0.4835243,112080.0,112070.0,0.4743636]
[1760153168408,0.4835243,112080.0,112070.0,0.8743636]
[1760153168717,0.4835243,112080.0,112070.0,0.78525]
[1760153169119,0.4835243,112080.0,112070.0,0.8743636]
[1760153169820,0.57263,112080.0,112070.0,0.78525]
[1760153170217,0.57263,112080.0,112070.0,0.38525]
[1760153170517,0.59787571,112080.0,112070.0,0.011]
[1760153170910,1.77162627,112080.0,112070.0,0.011]
[1760153171222,1.3586036,112080.0,112070.0,0.011]
[1760153171512,1.3586036,112080.0,112070.0,0.0008468]
[1760153171513,1.77162627,112080.0,112070.0,0.0008468]
[1760153171718,0.0950236,112070.0,112060.0,7.585e-05]
[1760153171917,1.30711465,112070.0,112060.0,7.585e-05]
[1760153172117,1.70711465,112070.0,112060.0,7.585e-05]
[1760153172312,0.0891375,112040.0,112030.0,0.3608]
[1760153172517,0.51259108,112040.0,112030.0,0.3608]
[1760153172714,0.53808857,112040.0,112030.0,0.3608]
[1760153173115,0.0891455,112030.0,112020.0,0.3608]
[1760153173309,0.50815028,112030.0,112020.0,0.3608]
[1760153173618,0.0891534,112020.0,112000.0,0.37425]
[1760153173819,0.50224994,112010.0,112000.0,0.41425]
[1760153174414,0.41308854,112010.0,112000.0,0.41425]
[1760153174615,0.41308854,112010.0,112000.0,0.5034193]
[1760153174815,0.41308854,112010.0,112000.0,0.5054193]
[1760153175213,0.41308854,112010.0,112000.0,0.91568588]
[1760153175520,0.41308854,112010.0,112000.0,0.9034193]
[1760153176319,0.36908854,112010.0,112000.0,0.9034193]
[1760153176717,0.45824994,112010.0,112000.0,0.41425]
[1760153178825,0.0891508,112030.0,112020.0,0.01345]
[1760153179023,0.41302267,112030.0,112020.0,0.5934034]
[1760153179221,0.0891293,112060.0,112040.0,0.01345]
[1760153179518,0.41302267,112050.0,112040.0,0.50425]
[1760153179920,0.41302267,112050.0,112040.0,0.4908]
[1760153179921,0.50215227,112050.0,112040.0,0.4908]
[1760153180114,0.90215227,112050.0,112040.0,0.4908]
[1760153180315,0.0891452,112030.0,112010.0,0.4634107]
[1760153180519,0.089134,112050.0,112030.0,0.01345]
[1760153180819,0.02623008,112050.0,112040.0,0.4633872]
[1760153181026,0.41402267,112050.0,112040.0,0.9933872]
[1760153182717,0.001,112050.0,112040.0,0.9933872]
[1760153183020,0.41302267,112070.0,112050.0,0.0891295]
[1760153183223,0.39833083,112110.0,112080.0,0.01288]
[1760153183423,0.41302267,112090.0,112080.0,0.4627856]
[1760153183919,0.50212017,112090.0,112080.0,0.37368]
[1760153184116,0.50212017,112090.0,112080.0,0.46368]
[1760153184723,0.0890939,112100.0,112090.0,0.01288]
[1760153184916,0.41302267,112100.0,112090.0,0.51368]
[1760153185119,0.41302267,112100.0,112090.0,1.0027775]
[1760153186724,0.0890657,112130.0,112120.0,0.01288]
[1760153186932,0.43759314,112130.0,112120.0,0.5327537]
[1760153187225,0.11363617,112130.0,112120.0,0.44368]
[1760153187420,0.41302267,112140.0,112130.0,0.1019457]
[1760153187627,0.41302267,112140.0,112130.0,0.5827457]
[1760153187823,0.41302267,112140.0,112130.0,0.49368]
[1760153188017,0.50208047,112140.0,112130.0,0.49368]
[1760153188223,0.43718601,112140.0,112130.0,0.49368]
[1760153188423,0.41302267,112140.0,112130.0,0.49368]
[1760153188626,0.41302267,112140.0,112130.0,0.9827457]
[1760153188823,0.089047,112160.0,112150.0,0.01288]
[1760153189018,0.0890499,112150.0,112140.0,0.37368]
[1760153189220,0.52623702,112150.0,112140.0,0.38368]
[1760153189916,0.99896607,112150.0,112140.0,0.01]
[1760153190325,0.99896607,112150.0,112140.0,0.3708]
[1760153191117,0.99896607,112150.0,112140.0,0.01]
[1760153191324,1.00571607,112150.0,112140.0,0.01]
[1760153191521,0.59896607,112150.0,112140.0,0.01]
[1760153191724,0.48575172,112150.0,112140.0,0.38368]
[1760153192526,0.57480162,112150.0,112140.0,0.38368]
[1760153192929,0.59857191,112150.0,112140.0,0.01]
[1760153193125,0.99857191,112150.0,112140.0,0.01]
[1760153193324,0.48575172,112150.0,112140.0,0.3708]
[1760153193528,0.97480162,112150.0,112140.0,0.01]
[1760153193730,0.99856276,112150.0,112140.0,0.01]
[1760153194329,0.99855446,112150.0,112140.0,0.01]
[1760153194630,0.48575172,112150.0,112140.0,0.38368]
[1760153195327,0.57480162,112150.0,112140.0,0.38368]
[1760153196230,0.16177895,112150.0,112140.0,0.38368]
[1760153196534,0.48575172,112150.0,112140.0,0.4727378]
[1760153196731,0.48575172,112150.0,112140.0,0.38368]
[1760153196933,0.57480162,112150.0,112140.0,0.38368]
[1760153197933,0.99852822,112150.0,112140.0,0.01]
[1760153198937,1.35932822,112150.0,112140.0,0.01]
[1760153199430,0.09645565,112150.0,112140.0,0.38368]
[1760153199635,0.50947832,112150.0,112140.0,0.38368]
[1760153200027,0.50947832,112150.0,112140.0,0.4727378]
[1760153200335,0.51147832,112150.0,112140.0,0.4727378]
[1760153200835,0.51147832,112150.0,112140.0,0.38368]
[1760153201036,0.59852822,112150.0,112140.0,0.38368]
[1760153201831,1.35932822,112150.0,112140.0,0.01]
[1760153202039,0.0890694,112130.0,112110.0,0.37368]
[1760153202331,0.43674927,112130.0,112120.0,0.3608]
[1760153202537,0.43674927,112130.0,112120.0,0.3708]
[1760153203138,0.52581497,112130.0,112120.0,0.38368]
[1760153203430,0.52581497,112130.0,112120.0,0.3708]
[1760153205329,0.52581497,112130.0,112120.0,0.01]
[1760153206134,0.0237266,112130.0,112120.0,0.38368]
[1760153206334,0.1127923,112130.0,112120.0,0.38368]
[1760153207346,0.52581497,112130.0,112120.0,0.38368]
[1760153207532,0.52581497,112130.0,112120.0,0.01]
[1760153207533,0.88661497,112130.0,112120.0,0.01]
[1760153207728,1.43451497,112130.0,112120.0,0.01]
[1760153207940,0.0890816,112110.0,112100.0,0.37368]
[1760153208133,0.0890816,112110.0,112100.0,0.4827696]
[1760153208134,0.43679469,112110.0,112100.0,0.4827696]
[1760153208341,0.52587629,112110.0,112100.0,0.39368]
[1760153208842,0.52587629,112110.0,112100.0,0.4827696]
[1760153209142,0.02377202,112110.0,112100.0,0.4827696]
[1760153209738,0.11285362,112110.0,112100.0,0.39368]
[1760153210537,0.51285362,112110.0,112100.0,0.02]
[1760153210738,0.0890975,112090.0,112080.0,0.37368]
[1760153211044,0.11286952,112090.0,112080.0,0.49368]
[1760153211737,0.51286952,112090.0,112080.0,0.4808]
[1760153211939,0.87366952,112090.0,112080.0,0.12]
[1760153212241,0.54449035,112090.0,112080.0,0.12]
[1760153212436,0.90529035,112090.0,112080.0,0.12]
[1760153212943,0.0891134,112070.0,112060.0,9.279e-05]
[1760153213241,0.0891134,112070.0,112060.0,0.13009279]
[1760153213242,0.46506852,112070.0,112060.0,0.13009279]
[1760153213744,0.46506852,112070.0,112060.0,0.49089279]
[1760153214345,0.0891532,112020.0,112010.0,0.374]
[1760153214635,0.11313778,112020.0,112010.0,0.0132]
[1760153214942,0.46532088,112020.0,112010.0,0.0232]
[1760153215540,0.82621374,112020.0,112010.0,0.0232]
[1760153215737,0.0891611,112010.0,112000.0,0.0132]
[1760153215938,0.4740406,112010.0,112000.0,0.0132]
[1760153216737,0.8740406,112010.0,112000.0,0.0132]
[1760153217336,0.4740406,112010.0,112000.0,0.0132]
[1760153218242,0.45005602,112010.0,112000.0,0.0132]
[1760153218438,0.52253857,112010.0,112000.0,0.0132]
[1760153219543,0.92253857,112010.0,112000.0,0.0132]
[1760153220239,0.94620229,112010.0,112000.0,0.0132]
[1760153221145,0.52261815,112010.0,112000.0,0.0232]
[1760153221539,0.56173857,112010.0,112000.0,0.0232]
[1760153221742,0.92253857,112010.0,112000.0,0.0232]
[1760153222137,0.1618376,112010.0,112000.0,0.0232]
[1760153222340,0.0726765,112010.0,112000.0,0.0232]
[1760153222540,0.0726765,112010.0,112000.0,0.873169]
[1760153222949,9.903e-05,112010.0,112000.0,0.88355673]
[1760153223141,0.3521831,112040.0,112030.0,0.0132]
[1760153223444,0.3521831,112040.0,112030.0,0.494]
[1760153224244,0.0891317,112050.0,112040.0,0.0132]
[1760153224447,0.0891317,112050.0,112040.0,0.0432]
[1760153225545,0.4499317,112050.0,112040.0,0.0432]
[1760153225849,0.8499317,112050.0,112040.0,0.0132]
[1760153226048,0.8499317,112050.0,112040.0,0.0232]
[1760153226243,0.8499317,112050.0,112040.0,0.0132]
[1760153226548,0.92102881,112050.0,112040.0,0.0132]
[1760153227249,0.0891375,112040.0,112030.0,0.0132]
[1760153227446,0.8021206,112040.0,112030.0,0.0132]
[1760153228246,0.8021206,112040.0,112020.0,0.0132]
[1760153228247,0.0891519,112030.0,112020.0,0.0132]
[1760153228549,0.4499519,112030.0,112020.0,0.0132]
[1760153231049,0.3608,112030.0,112020.0,0.0132]
[1760153231358,0.8021348,112030.0,112020.0,0.5432]
[1760153231557,0.8021348,112030.0,112020.0,0.1432]
[1760153232357,0.3608,112040.0,112030.0,0.0132]
[1760153232358,0.3521831,112040.0,112030.0,0.0132]
[1760153232554,0.8021269,112040.0,112030.0,0.0432]
[1760153233160,0.87321711,112050.0,112040.0,0.0132]
[1760153233458,0.89648564,112050.0,112040.0,0.0332]
[1760153233956,0.42328021,112050.0,112040.0,0.4332]
[1760153234159,0.07109711,112050.0,112040.0,0.8831438]
[1760153234358,0.81238182,112060.0,112050.0,0.0132]
[1760153234559,0.46449083,112060.0,112050.0,0.1332]
[1760153234759,0.4413172,112060.0,112050.0,0.1332]
[1760153234961,0.3521831,112060.0,112050.0,0.2223359]
[1760153235264,0.44286482,112060.0,112050.0,0.1332]
[1760153235465,0.80366482,112060.0,112050.0,0.1332]
[1760153235958,0.80366482,112060.0,112050.0,0.0132]
[1760153235959,0.89870263,112060.0,112050.0,0.0132]
[1760153236161,0.0891359,112050.0,112040.0,0.0132]
[1760153236362,0.47312008,112050.0,112040.0,0.0132]
[1760153237264,0.47412008,112050.0,112040.0,0.0132]
[1760153237764,0.47512008,112050.0,112040.0,0.0132]
[1760153239669,0.87512008,112050.0,112040.0,0.1432]
[1760153239871,0.90663187,112050.0,112040.0,0.1043746]
[1760153240171,0.95407637,112050.0,112040.0,0.1043746]
[1760153240366,1.27474768,112050.0,112040.0,0.1043746]
[1760153240565,0.90620619,112050.0,112040.0,0.1043746]
[1760153240768,1.05310619,112050.0,112040.0,0.1043746]
[1760153240967,1.05410619,112050.0,112040.0,0.1175746]
[1760153241168,0.82730318,112050.0,112040.0,0.1175746]
[1760153241368,1.25876169,112050.0,112040.0,0.1043746]
[1760153241572,0.85876169,112050.0,112040.0,0.1183446]
[1760153241965,0.82730318,112050.0,112040.0,0.1183446]
[1760153242161,0.85876169,112050.0,112040.0,0.1183446]
[1760153243072,0.85776169,112050.0,112040.0,0.1183446]
[1760153243272,0.85876169,112050.0,112040.0,0.1183446]
[1760153243870,0.85776169,112050.0,112040.0,0.1183446]
[1760153244069,0.85876169,112050.0,112040.0,0.1183446]
[1760153245183,0.37736728,112050.0,112040.0,0.9682892]
[1760153245373,0.37736728,112050.0,112040.0,0.8791446]
[1760153245674,0.73816728,112050.0,112040.0,0.5183446]
[1760153245977,0.82730388,112050.0,112040.0,0.1183446]
[1760153246275,1.22730388,112050.0,112040.0,0.1183446]
[1760153246476,1.25776239,112050.0,112040.0,0.1183446]
[1760153246870,1.30420689,112050.0,112040.0,0.1183446]
[1760153247069,0.0891446,112040.0,112030.0,0.0132]
[1760153247373,0.0891526,112030.0,112020.0,0.0132]
[1760153247566,0.82531988,112030.0,112020.0,0.1332]
[1760153248076,0.85677839,112030.0,112020.0,0.1332]
[1760153248770,0.82531988,112030.0,112020.0,0.1332]
[1760153249276,0.85677839,112030.0,112020.0,0.1332]
[1760153250371,1.27376438,112030.0,112020.0,0.1001952]
[1760153251476,0.82631988,112030.0,112020.0,0.1001952]
[1760153251876,0.87360568,112030.0,112020.0,0.1001952]
[1760153252377,1.27360568,112030.0,112020.0,0.1001952]
[1760153252572,1.27360568,112030.0,112020.0,0.0651952]
[1760153252872,1.27360568,112030.0,112000.0,0.01397]
[1760153252873,0.0891685,112010.0,112000.0,0.01397]
[1760153253080,0.85612976,112010.0,112000.0,0.12397]
[1760153253370,0.86608149,112010.0,112000.0,0.14601]
[1760153254269,1.19536221,112010.0,112000.0,0.12397]
[1760153255972,1.19536221,112010.0,112000.0,0.14601]
[1760153256171,0.83456221,112010.0,112000.0,0.12397]
[1760153256480,0.83456221,112010.0,112000.0,0.14601]
[1760153256679,0.83456221,112010.0,112000.0,0.12397]
[1760153256979,0.83456221,112010.0,112000.0,0.14601]
[1760153257180,0.38459371,112010.0,112000.0,0.14601]
[1760153257381,0.37464198,112010.0,112000.0,0.54601]
[1760153257681,0.02245888,112010.0,112000.0,0.6351865]
[1760153257873,0.02245888,112010.0,112000.0,0.9959865]
[1760153258978,0.02755888,112010.0,112000.0,0.9959865]
[1760153259173,0.0051,112010.0,112000.0,0.9959865]
[1760153259369,0.001,112010.0,112000.0,0.9959865]
[1760153259576,0.8021323,112040.0,112030.0,0.01397]
[1760153259777,0.82349225,112040.0,112030.0,0.12397]
[1760153260280,1.22349225,112040.0,112030.0,0.0384674]
[1760153260678,0.0891528,112030.0,112020.0,0.01397]
[1760153260875,0.47131275,112030.0,112020.0,0.13397]
[1760153261074,0.50283203,112030.0,112020.0,0.13397]
[1760153261582,0.51295124,112030.0,112020.0,0.13397]
[1760153261977,0.48143196,112030.0,112020.0,0.15601]
[1760153262180,0.48343196,112030.0,112020.0,0.15601]
[1760153262385,0.48343196,112030.0,112020.0,0.13397]
[1760153262874,0.88343196,112030.0,112020.0,0.13397]
[1760153263071,0.91495124,112030.0,112020.0,0.13397]
[1760153263471,0.88343196,112030.0,112020.0,0.13397]
[1760153263981,0.83561506,112030.0,112020.0,0.13397]
[1760153264575,0.38415995,112030.0,112020.0,0.55601]
[1760153265378,0.11251265,112030.0,112020.0,0.55601]
[1760153265976,0.47331265,112030.0,112020.0,0.55601]
[1760153266177,0.47331265,112030.0,112020.0,0.15601]
[1760153266482,0.47331265,112030.0,112020.0,0.13397]
[1760153266885,0.47331265,112030.0,112020.0,0.15601]
[1760153267876,0.11251265,112030.0,112020.0,0.55601]
[1760153268279,0.02335995,112030.0,112020.0,0.91681]
[1760153268483,0.11251265,112030.0,112020.0,0.55601]
[1760153269183,0.47331265,112030.0,112020.0,0.55601]
[1760153269485,0.11251265,112030.0,112020.0,0.15601]
[1760153269982,0.02335995,112030.0,112020.0,1.0059707]
[1760153270185,0.002,112030.0,112020.0,1.0059707]
[1760153271080,0.002,112030.0,112020.0,0.91681]
[1760153271282,0.0911527,112030.0,112020.0,0.91681]
[1760153271482,0.023985,112030.0,112020.0,1.0059707]
[1760153272182,0.002,112030.0,112020.0,1.0059707]
[1760153272482,0.0911527,112030.0,112020.0,1.0059707]
[1760153273280,0.88820207,112030.0,112020.0,0.55601]
[1760153273476,0.50542708,112030.0,112020.0,0.55601]
[1760153273677,0.0911527,112030.0,112020.0,0.55601]
[1760153274283,0.002,112030.0,112020.0,1.0059707]
[1760153275582,0.0911527,112030.0,112020.0,1.0059707]
[1760153275784,0.002,112030.0,112020.0,1.0059707]
[1760153276781,0.002,112030.0,112020.0,0.51681]
[1760153276985,0.0911528,112030.0,112020.0,0.6451707]
[1760153277180,0.0911528,112030.0,112020.0,1.0059707]
[1760153277379,0.0901528,112030.0,112020.0,1.0059707]
[1760153277786,0.001,112030.0,112020.0,1.0059707]
[1760153277974,0.0891527,112030.0,112020.0,0.55601]
[1760153278584,0.4550163,112040.0,112020.0,0.6451707]
[1760153278887,0.4550163,112040.0,112030.0,0.1241027]
[1760153279188,0.86929068,112040.0,112030.0,0.16495]
[1760153279580,0.50849068,112040.0,112030.0,0.16495]
[1760153279783,0.00507,112040.0,112030.0,0.16495]
[1760153279984,0.0942148,112040.0,112030.0,0.16495]
[1760153280392,0.86928918,112040.0,112030.0,0.16495]
[1760153281185,1.29190739,112040.0,112030.0,0.1438]
[1760153281488,0.86928918,112040.0,112030.0,0.16495]
[1760153281790,0.86928918,112040.0,112030.0,0.1438]
[1760153281791,0.89191238,112040.0,112030.0,0.1438]
[1760153281986,0.477638,112040.0,112030.0,0.16495]
[1760153282780,0.00507,112040.0,112030.0,0.6149027]
[1760153283093,0.0942147,112040.0,112030.0,0.52575]
[1760153283287,0.86928908,112040.0,112030.0,0.16495]
[1760153283489,0.50848908,112040.0,112030.0,0.16495]
[1760153284398,0.86928908,112040.0,112030.0,0.16495]
[1760153287691,0.0942147,112040.0,112030.0,0.16495]
[1760153288685,0.4550147,112040.0,112030.0,0.16495]
[1760153288892,0.0942147,112040.0,112030.0,0.16495]
[1760153289093,0.4550147,112040.0,112030.0,0.16495]
[1760153289791,0.8550147,112040.0,112030.0,0.1438]
[1760153289989,0.87830613,112040.0,112030.0,0.1438]
[1760153290896,1.29358051,112040.0,112030.0,0.1438]
[1760153291493,1.44148051,112040.0,112030.0,0.0138]
[1760153291691,0.0891527,112030.0,112020.0,0.01397]
[1760153291889,0.47324413,112030.0,112020.0,0.16512]
[1760153293587,0.47424413,112030.0,112020.0,0.16512]
[1760153293786,0.88851851,112030.0,112020.0,0.16512]
[1760153294690,1.28851851,112030.0,112020.0,0.14397]
[1760153294994,0.47424413,112030.0,112020.0,0.01397]
[1760153295195,0.47424413,112030.0,112020.0,0.03512]
[1760153295400,0.88851851,112030.0,112020.0,0.16512]
[1760153295896,1.03641851,112030.0,112020.0,0.16512]
[1760153296093,0.02429143,112030.0,112020.0,0.16512]
[1760153296396,0.47424423,112030.0,112020.0,0.16512]
[1760153296897,0.11344423,112030.0,112020.0,0.16512]
[1760153297091,0.47424423,112030.0,112020.0,0.16512]
[1760153297287,0.001,112030.0,112020.0,0.92592]
[1760153297491,0.4550158,112040.0,112030.0,0.03495]
[1760153297697,0.47922266,112040.0,112030.0,0.15495]
[1760153298488,0.11842266,112040.0,112030.0,0.15495]
[1760153298694,0.47922266,112040.0,112030.0,0.15495]
[1760153298893,0.89349704,112040.0,112030.0,0.15495]
[1760153299693,0.47922266,112040.0,112030.0,0.15495]
[1760153299898,1.44139704,112040.0,112030.0,0.0138]
[1760153300591,0.89349704,112040.0,112030.0,0.16495]
[1760153301093,1.29349704,112040.0,112030.0,0.1438]
[1760153301299,1.29449704,112040.0,112030.0,0.1438]
[1760153301996,1.29349704,112040.0,112030.0,0.1438]
[1760153302196,1.29449704,112040.0,112030.0,0.0138]
[1760153303798,1.29549704,112040.0,112030.0,0.0138]
[1760153304304,1.29449704,112040.0,112030.0,0.0138]
[1760153304599,1.29549704,112040.0,112030.0,0.0138]
[1760153304800,0.0891528,112030.0,112020.0,0.01397]
[1760153305001,0.47415966,112030.0,112020.0,0.01397]
[1760153305194,0.47415966,112030.0,112020.0,0.03523]
[1760153305697,0.38500686,112030.0,112020.0,0.03523]
[1760153305896,0.38600686,112030.0,112020.0,0.03523]
[1760153306405,0.47515966,112030.0,112020.0,0.03523]
[1760153306600,0.47615966,112030.0,112020.0,0.03523]
[1760153306802,0.89043404,112030.0,112020.0,0.01397]
[1760153310907,1.03833404,112030.0,112020.0,0.01397]
[1760153311800,1.88410824,112030.0,112000.0,0.01397]
[1760153312004,1.22504308,112010.0,112000.0,0.02397]
[1760153312310,0.83497556,112010.0,112000.0,0.02397]
[1760153312803,0.74580686,112010.0,112000.0,0.04523]
[1760153313100,0.47417556,112010.0,112000.0,0.02397]
[1760153313897,1.43634994,112010.0,112000.0,0.01]
[1760153314105,1.43634994,112010.0,111990.0,0.01318]
[1760153314106,0.0891767,112000.0,111990.0,0.01318]
[1760153314303,0.88845794,112000.0,111990.0,0.01318]
[1760153314705,0.47418356,112000.0,111990.0,0.01318]
[1760153315104,0.0891847,111990.0,111980.0,0.01318]
[1760153315309,0.60952285,111990.0,111980.0,0.06318]
[1760153315607,0.47419156,111990.0,111980.0,0.05218]
[1760153315805,0.48396271,111990.0,111980.0,0.05218]
[1760153316505,0.48396271,111990.0,111960.0,0.02310298]
[1760153316506,0.0892008,111970.0,111960.0,0.02310298]
[1760153316710,0.86427388,111980.0,111970.0,0.01318]
[1760153316910,0.47676526,111980.0,111970.0,0.01318]
[1760153317210,0.38756576,111980.0,111970.0,0.45444]
[1760153318004,0.47675836,111980.0,111970.0,0.45444]
[1760153318602,0.43275836,111980.0,111970.0,0.45444]
[1760153319411,0.83275836,111980.0,111970.0,0.03318]
[1760153319610,0.43275836,111980.0,111970.0,0.05444]
[1760153320007,0.4937539,111990.0,111970.0,0.45444]
[1760153320203,0.00155495,111990.0,111980.0,0.03444]
[1760153320404,0.36235495,111990.0,111980.0,0.05444]
[1760153320610,0.00155495,111990.0,111980.0,0.05444]
[1760153320911,0.00155495,111990.0,111980.0,0.9044326]
[1760153321113,0.00155495,111990.0,111980.0,1.31870698]
[1760153321314,0.4499618,112020.0,112010.0,0.03444]
[1760153321506,0.4499618,112020.0,112010.0,0.01318]
[1760153322109,0.4499618,112020.0,112010.0,0.43444]
[1760153322308,0.4499618,112020.0,112010.0,0.01318]
[1760153322703,0.87432731,112020.0,112010.0,0.01318]
[1760153322908,1.27432731,112020.0,112010.0,0.01318]
[1760153324007,0.87432731,112020.0,112010.0,0.01318]
[1760153324406,0.0891687,112010.0,112000.0,0.01318]
[1760153324610,0.4499687,112010.0,112000.0,0.01318]
[1760153325013,0.4499687,112010.0,112000.0,0.03444]
[1760153325212,1.39529762,112010.0,112000.0,0.01318]
[1760153325613,0.98102324,112010.0,112000.0,0.01318]
[1760153325806,1.12912324,112010.0,112000.0,0.01318]
[1760153326002,1.13420324,112010.0,112000.0,0.01318]
[1760153326406,0.0891766,112000.0,111990.0,0.01318]
[1760153326612,0.4499766,112000.0,111990.0,0.01318]
[1760153327313,0.4499766,112000.0,111990.0,0.03444]
[1760153327502,0.4499766,112000.0,111990.0,0.01318]
[1760153327907,0.4499766,112000.0,111990.0,0.03444]
[1760153328511,0.3608,112000.0,111990.0,0.43444]
[1760153328815,0.4499766,112000.0,111990.0,0.04444]
[1760153330211,0.4499766,112000.0,111990.0,0.01318]
[1760153330511,0.47639452,112000.0,111990.0,0.01318]
[1760153331112,0.47639452,112000.0,111990.0,0.03543]
[1760153331313,0.47639452,112000.0,111990.0,0.01318]
[1760153331513,0.47639452,112000.0,111990.0,0.03512]
[1760153332611,0.47639452,112000.0,111990.0,0.03480907]
[1760153334220,0.02641792,112000.0,111990.0,0.58399367]
[1760153334416,0.02797247,112000.0,111990.0,0.58399367]
[1760153334612,0.02797247,112000.0,111990.0,0.94479367]
[1760153334813,0.02797247,112000.0,111990.0,0.45560907]
[1760153335019,0.02797247,112000.0,111990.0,0.09480907]
[1760153335711,0.02797247,112000.0,111990.0,0.49480907]
[1760153335918,0.02797247,112000.0,111990.0,0.94479367]
[1760153336222,0.02797247,112000.0,111990.0,0.09480907]
[1760153336414,0.38877247,112000.0,111990.0,0.09480907]
[1760153336916,0.02797247,112000.0,111990.0,0.09480907]
[1760153337624,0.38877247,112000.0,111990.0,0.09480907]
[1760153337819,0.02797247,112000.0,111990.0,0.09480907]
[1760153338019,0.47794907,112000.0,111990.0,0.09480907]
[1760153338221,0.11714907,112000.0,111990.0,0.09480907]
[1760153338416,0.02797247,112000.0,111990.0,0.58399367]
[1760153338728,0.02797247,112000.0,111990.0,0.94479367]
[1760153339231,0.02797247,112000.0,111990.0,0.49480907]
[1760153339628,0.02797247,112000.0,111990.0,0.85560907]
[1760153339827,0.02797247,112000.0,111990.0,0.49480907]
[1760153340231,0.02797247,112000.0,111990.0,0.94479367]
[1760153340430,0.02797247,112000.0,111990.0,0.58399367]
[1760153340840,0.02797247,112000.0,111990.0,0.94479367]
[1760153341045,0.02797247,112000.0,111990.0,1.29759143]
[1760153341240,0.02797247,112000.0,111990.0,1.30709746]
[1760153341241,0.00155455,112000.0,111990.0,1.30709746]
[1760153341433,0.03151928,112040.0,112030.0,0.03486]
[1760153341636,0.02496148,112040.0,112030.0,0.6248127]
[1760153341939,0.02496148,112040.0,112030.0,1.0248127]
[1760153342335,0.43265363,112060.0,112050.0,0.03486]
[1760153342529,0.47454899,112060.0,112050.0,0.03486]
[1760153342734,0.0891368,112050.0,112040.0,0.01292]
[1760153343039,0.47455689,112050.0,112040.0,0.01292]
[1760153343334,0.87455689,112050.0,112040.0,0.01292]
[1760153343543,1.22735465,112050.0,112040.0,0.01292]
[1760153344433,0.0891448,112040.0,112030.0,0.01292]
[1760153344638,0.0891528,112030.0,112020.0,0.01292]
[1760153344840,0.47457289,112030.0,112020.0,0.03486]
[1760153345341,0.47457289,112030.0,112020.0,0.01292]
[1760153345732,0.47457289,112030.0,112020.0,0.03486]
[1760153345936,0.02462009,112030.0,112020.0,0.03486]
[1760153346234,0.0261743,112030.0,112020.0,0.44486]
[1760153346441,0.0261743,112030.0,112020.0,0.04486]
[1760153347233,0.0261743,112030.0,112020.0,0.8948207]
[1760153347440,0.00155421,112030.0,112020.0,1.24761846]
[1760153347640,0.43146302,112060.0,112050.0,0.03486]
[1760153347936,0.09575964,112060.0,112050.0,0.4947968]
[1760153348136,0.07221673,112060.0,112050.0,0.1339968]
[1760153348337,0.07221673,112060.0,112050.0,0.4947968]
[1760153348534,0.52214583,112060.0,112050.0,0.04486]
[1760153348845,0.54663581,112060.0,112050.0,0.04486]
[1760153349141,0.54663532,112060.0,112050.0,0.04486]
[1760153349439,0.18582942,112060.0,112050.0,0.04486]
[1760153349639,0.54662942,112060.0,112050.0,0.01292]
[1760153350039,0.0891368,112050.0,112040.0,0.01292]
[1760153350232,0.47442039,112050.0,112040.0,0.01292]
[1760153350838,0.0891448,112040.0,112030.0,0.01292]
[1760153351136,0.47442839,112040.0,112030.0,0.01292]
[1760153351533,0.0891527,112030.0,112020.0,0.01292]
[1760153351733,0.47443829,112030.0,112020.0,0.01292]
[1760153351937,0.38528359,112030.0,112020.0,0.02292]
[1760153352342,0.38528359,112030.0,112020.0,0.04486]
[1760153352641,0.47443629,112030.0,112020.0,0.04486]
[1760153353541,0.47443629,112030.0,112020.0,0.02292]
[1760153355338,0.02448359,112030.0,112020.0,0.02292]
[1760153355643,0.38651761,112040.0,112030.0,0.01292]
[1760153355845,0.38651796,112040.0,112030.0,0.01292]
[1760153356038,0.47566276,112040.0,112030.0,0.01292]
[1760153356942,0.0891528,112030.0,112020.0,0.01292]
[1760153357147,0.47567076,112030.0,112020.0,0.02292]
[1760153357346,0.38651796,112030.0,112020.0,0.04486]
[1760153357645,0.47567076,112030.0,112020.0,0.02292]
[1760153358344,0.38651796,112030.0,112020.0,0.04486]
[1760153358533,0.02571796,112030.0,112020.0,0.04486]
[1760153358740,0.4499528,112030.0,112020.0,0.02292]
[1760153359039,0.47567076,112030.0,112020.0,0.02292]
[1760153359242,0.12438973,112030.0,112020.0,0.04486]
[1760153359442,0.03523693,112030.0,112020.0,0.04486]
[1760153359746,0.02571796,112030.0,112020.0,0.04486]
[1760153359944,0.4499512,112040.0,112030.0,0.01292]
[1760153360243,0.47596882,112040.0,112030.0,0.01292]
[1760153360644,0.47596882,112040.0,112030.0,0.03486]
[1760153361045,0.48573,112040.0,112030.0,0.03486]
[1760153361241,0.38681762,112040.0,112030.0,0.03486]
[1760153362249,0.47596242,112040.0,112030.0,0.03486]
[1760153362440,0.38681762,112040.0,112030.0,0.03486]
[1760153362636,0.38681762,112040.0,112030.0,0.03423839]
[1760153363147,0.38681762,112040.0,112030.0,0.43423839]
[1760153363342,0.02601762,112040.0,112030.0,0.80503839]
[1760153363549,0.02601762,112040.0,112030.0,0.44423839]
[1760153363748,0.02601762,112040.0,112030.0,0.04423839]
[1760153364046,0.02601762,112040.0,112030.0,0.03423839]
[1760153364543,0.11516262,112040.0,112030.0,0.03423839]
[1760153364751,0.47596262,112040.0,112030.0,0.01229839]
[1760153365050,0.87596262,112040.0,112030.0,0.01229839]
[1760153365642,0.87596262,112040.0,112030.0,0.03435839]
[1760153365843,0.87596262,112040.0,112030.0,0.04435839]
[1760153366042,0.87596262,112040.0,112030.0,0.02229839]
[1760153366545,0.0891528,112030.0,112020.0,0.01292]
[1760153366849,0.47597042,112030.0,112020.0,0.02292]